fUSD/lending_fUSD_20250828
["ID","MTS","AMOUNT","RATE_DAILY","PERIOD"]
[381860778,1756374644674,-400.0,0.00019095,2]
[381860780,1756374644683,-400.0,0.00019095,2]
[381860782,1756374644692,-423.69,0.00019095,2]
[381860784,1756374644701,-400.0,0.00019095,2]
[381860787,1756374644712,-400.0,0.00019095,2]
[381860789,1756374644721,-400.0,0.00019095,2]
[381860791,1756374644731,-400.0,0.00019095,2]
[381860793,1756374644740,-226.72,0.00019112,2]
[381860795,1756374644749,-2105.58172,0.0001923,2]
[381860797,1756374644759,-400.0,0.00019269,2]
[381860799,1756374644768,-400.0,0.00019269,2]
[381860801,1756374644778,-400.0,0.00019269,2]
[381860803,1756374644787,-500.0,0.0001927,6]
[381860805,1756374644796,-942.0,0.0001927,6]
[381860807,1756374644806,-500.0,0.0001927,6]
[381860809,1756374644815,-250.0,0.0001927,6]
[381860811,1756374644824,-500.0,0.0001927,6]
[381860812,1756374644833,-500.0,0.0001927,6]
[381860814,1756374644843,-500.0,0.0001927,6]
[381860816,1756374644853,-447.72,0.00019368,2]
[381860818,1756374644864,-625.0,0.00019368,2]
[381860820,1756374644874,-400.0,0.00019368,2]
[381860822,1756374644883,-400.0,0.00019368,2]
[381860825,1756374644893,-400.0,0.00019368,2]
[381860827,1756374644903,-400.0,0.00019368,2]
[381860829,1756374644912,-501.10794781,0.00019368,2]
[381860831,1756374644922,-500.0,0.00019368,2]
[381860833,1756374644931,-500.0,0.00019368,2]
[381860835,1756374644940,-294.74950979,0.00019368,2]
[381860836,1756374644949,-250.0,0.00019369,2]
[381860838,1756374644959,-250.0,0.00019369,2]
[381860841,1756374644969,-913.32,0.00019369,2]
[381860843,1756374644979,-400.0,0.00019369,2]
[381860845,1756374644988,-500.62,0.00019369,2]
[381860847,1756374644997,-400.0,0.00019369,2]
[381860849,1756374645007,-400.0,0.00019369,2]
[381860850,1756374645016,-400.0,0.00019369,2]
[381860852,1756374645027,-400.0,0.00019369,2]
[381860854,1756374645036,-400.0,0.00019369,2]
[381860857,1756374645047,-400.0,0.00019369,2]
[381860859,1756374645056,-833.33,0.00019369,2]
[381860860,1756374645066,-400.0,0.00019369,2]
[381860862,1756374645075,-400.0,0.00019369,2]
[381860865,1756374645085,-2074.16,0.00019369,2]
[381860866,1756374645095,-379.81388795,0.00019369,2]
[381860868,1756374645105,-1122.34,0.00019369,2]
[381860870,1756374645115,-560.03,0.00019369,2]
[381860872,1756374645125,-400.0,0.00019369,2]
[381860874,1756374645134,-400.0,0.00019369,2]
[381860876,1756374645144,-400.0,0.00019369,2]
[381860879,1756374645156,-400.0,0.00019369,2]
[381860881,1756374645166,-423.69,0.00019369,2]
[381860883,1756374645175,-400.0,0.00019369,2]
[381860885,1756374645184,-400.0,0.00019369,2]
[381860887,1756374645194,-400.0,0.00019369,2]
[381860889,1756374645203,-400.0,0.00019543,2]
[381860891,1756374645213,-400.0,0.00019543,2]
[381860893,1756374645222,-400.0,0.00019543,2]
[381860895,1756374645235,-500.0,0.00019544,6]
[381860897,1756374645245,-942.0,0.00019544,6]
[381860899,1756374645254,-500.0,0.00019544,6]
[381860901,1756374645263,-500.0,0.00019544,6]
[381860903,1756374645274,-500.0,0.00019544,6]
[381860905,1756374645284,-500.0,0.00019544,6]
[381860907,1756374645294,-558.69011223,0.00019625,2]
[381860909,1756374645303,-447.72,0.00019642,2]
[381860911,1756374645312,-625.0,0.00019642,2]
[381860913,1756374645322,-400.0,0.00019642,2]
[381860915,1756374645331,-400.0,0.00019642,2]
[381860917,1756374645340,-400.0,0.00019642,2]
[381860919,1756374645350,-400.0,0.00019642,2]
[381860921,1756374645359,-913.32,0.00019643,2]
[381860923,1756374645368,-368.93553987,0.00019643,2]
[381860925,1756374645377,-500.62,0.00019643,2]
[381860927,1756374645387,-400.0,0.00019643,2]
[381860929,1756374645396,-400.0,0.00019643,2]
[381860931,1756374645406,-400.0,0.00019643,2]
[381860933,1756374645415,-400.0,0.00019643,2]
[381860935,1756374645425,-400.0,0.00019643,2]
[381860936,1756374645434,-400.0,0.00019643,2]
[381860937,1756374645443,-833.33,0.00019643,2]
[381860938,1756374645452,-400.0,0.00019643,2]
[381860939,1756374645461,-400.0,0.00019643,2]
[381860940,1756374645471,-2074.16,0.00019643,2]
[381860942,1756374645480,-1122.34,0.00019643,2]
[381860944,1756374645489,-560.03,0.00019643,2]
[381860946,1756374645499,-300.44409625,0.00019643,2]
[381860948,1756374645508,-400.0,0.00019643,2]
[381860950,1756374645517,-400.0,0.00019643,2]
[381860952,1756374645527,-400.0,0.00019643,2]
[381860954,1756374645536,-423.69,0.00019643,2]
[381860956,1756374645546,-400.0,0.00019643,2]
[381860958,1756374645556,-400.0,0.00019643,2]
[381860960,1756374645566,-400.0,0.00019643,2]
[381860962,1756374645575,-2105.58172,0.0001973,2]
[381860964,1756374645585,-280.54255354,0.00019773,2]
[381860966,1756374645595,-163.39,0.00019792,2]
[381860968,1756374645604,-400.0,0.00019817,2]
[381860970,1756374645613,-400.0,0.00019817,2]
[381860972,1756374645623,-400.0,0.00019817,2]
[381860974,1756374645632,-500.0,0.00019818,6]
[381860976,1756374645642,-942.0,0.00019818,6]
[381860978,1756374645651,-500.0,0.00019818,6]
[381860980,1756374645661,-500.0,0.00019818,6]
[381860982,1756374645671,-500.0,0.00019818,6]
[381860984,1756374645680,-500.0,0.00019818,6]
[381860986,1756374645689,-2351.0,0.00019862,2]
[381860988,1756374645698,-251.0,0.00019863,2]
[381860990,1756374645708,-447.72,0.00019916,2]
[381860992,1756374645718,-625.0,0.00019916,2]
[381860994,1756374645727,-400.0,0.00019916,2]
[381860996,1756374645736,-400.0,0.00019916,2]
[381860998,1756374645746,-400.0,0.00019916,2]
[381861000,1756374645755,-400.0,0.00019916,2]
[381861002,1756374645764,-1000.0,0.00019916,2]
[381861004,1756374645774,-1000.0,0.00019916,2]
[381861006,1756374645784,-913.32,0.00019917,2]
[381861008,1756374645794,-500.62,0.00019917,2]
[381861010,1756374645803,-400.0,0.00019917,2]
[381861012,1756374645813,-400.0,0.00019917,2]
[381861014,1756374645823,-400.0,0.00019917,2]
[381861016,1756374645832,-446.81618788,0.00019917,2]
[381861019,1756374645842,-400.0,0.00019917,2]
[381861020,1756374645852,-400.0,0.00019917,2]
[381861022,1756374645865,-833.33,0.00019917,2]
[381861025,1756374645875,-400.0,0.00019917,2]
[381861026,1756374645885,-400.0,0.00019917,2]
[381861029,1756374645896,-2074.16,0.00019917,2]
[381861031,1756374645907,-1122.34,0.00019917,2]
[381861032,1756374645916,-560.03,0.00019917,2]
[381861034,1756374645925,-400.0,0.00019917,2]
[381861036,1756374645936,-400.0,0.00019917,2]
[381861038,1756374645946,-400.0,0.00019917,2]
[381861040,1756374645956,-423.69,0.00019917,2]
[381861042,1756374645965,-400.0,0.00019917,2]
[381861044,1756374645975,-400.0,0.00019917,2]
[381861047,1756374645986,-400.0,0.00019917,2]
[381861049,1756374646005,-226.72,0.00019943,2]
[381861051,1756374646014,-438.0,0.00019966,2]
[381861053,1756374646024,-4000.0,0.0002,4]
[381861055,1756374646034,-400.0,0.00020091,2]
[381861057,1756374646043,-400.0,0.00020091,2]
[381861059,1756374646052,-400.0,0.00020091,2]
[381861061,1756374646062,-500.0,0.00020091,2]
[381861063,1756374646071,-500.0,0.00020092,6]
[381861065,1756374646084,-942.0,0.00020092,6]
[381861067,1756374646093,-450.0,0.00020092,6]
[381861069,1756374646103,-500.0,0.00020092,6]
[381861071,1756374646112,-291.55,0.00020187,2]
[381861073,1756374646122,-447.72,0.0002019,2]
[381861075,1756374646132,-625.0,0.0002019,2]
[381861077,1756374646142,-400.0,0.0002019,2]
[381861079,1756374646152,-344.00800295,0.0002019,2]
[381861081,1756374646161,-400.0,0.0002019,2]
[381861083,1756374646171,-400.0,0.0002019,2]
[381861085,1756374646181,-913.32,0.00020191,2]
[381861087,1756374646191,-500.62,0.00020191,2]
[381861089,1756374646200,-400.0,0.00020191,2]
[381861091,1756374646209,-400.0,0.00020191,2]
[381861094,1756374646219,-400.0,0.00020191,2]
[381861096,1756374646234,-400.0,0.00020191,2]
[381861098,1756374646244,-400.0,0.00020191,2]
[381861100,1756374646253,-833.33,0.00020191,2]
[381861102,1756374646263,-400.0,0.00020191,2]
[381861104,1756374646272,-400.0,0.00020191,2]
[381861106,1756374646282,-2074.16,0.00020191,2]
[381861108,1756374646291,-1122.34,0.00020191,2]
[381861110,1756374646301,-560.03,0.00020191,2]
[381861112,1756374646311,-400.0,0.00020191,2]
[381861114,1756374646321,-457.13228495,0.00020191,2]
[381861115,1756374646331,-400.0,0.00020191,2]
[381861117,1756374646340,-423.69,0.00020191,2]
[381861119,1756374646349,-400.0,0.00020191,2]
[381861121,1756374646359,-400.0,0.00020191,2]
[381861123,1756374646369,-400.0,0.00020191,2]
[381861125,1756374646379,-2105.58172,0.0002023,2]
[381861128,1756374646389,-4428.710024,0.00020288,2]
[381861130,1756374646398,-4834.4629266,0.00020288,2]
[381861132,1756374646408,-400.0,0.00020365,2]
[381861134,1756374646417,-344.40112935,0.00020365,2]
[381861136,1756374646426,-400.0,0.00020365,2]
[381861138,1756374646435,-500.0,0.00020366,6]
[381861140,1756374646445,-942.0,0.00020366,6]
[381861142,1756374646454,-500.0,0.00020366,6]
[381861144,1756374646463,-447.72,0.00020464,2]
[381861146,1756374646473,-625.0,0.00020464,2]
[381861148,1756374646482,-400.0,0.00020464,2]
[381861150,1756374646491,-400.0,0.00020464,2]
[381861152,1756374646500,-338.90799678,0.00020464,2]
[381861154,1756374646510,-500.0,0.00020464,2]
[381861156,1756374646519,-913.32,0.00020465,2]
[381861158,1756374646529,-158.54407924,0.00020465,2]
[381861191,1756374646812,-342.07592076,0.00020465,2]
[381861193,1756374646822,-400.0,0.00020465,2]
[381861195,1756374646831,-400.0,0.00020465,2]
[381861197,1756374646840,-400.0,0.00020465,2]
[381861199,1756374646849,-400.0,0.00020465,2]
[381861201,1756374646861,-400.0,0.00020465,2]
[381861203,1756374646870,-833.33,0.00020465,2]
[381861205,1756374646881,-400.0,0.00020465,2]
[381861207,1756374646890,-400.0,0.00020465,2]
[381861209,1756374646901,-1706.11186238,0.00020465,2]
[381861212,1756374646913,-368.04813762,0.00020465,2]
[381861214,1756374646922,-1122.34,0.00020465,2]
[381861216,1756374646931,-560.03,0.00020465,2]
[381861218,1756374646940,-400.0,0.00020465,2]
[381861220,1756374646949,-400.0,0.00020465,2]
[381861222,1756374646958,-423.69,0.00020465,2]
[381861224,1756374646968,-299.38952212,0.00020465,2]
[381861226,1756374646979,-95.0262715,0.00020465,2]
[381861228,1756374646988,-400.0,0.00020465,2]
[381861230,1756374646997,-400.0,0.00020465,2]
[381861232,1756374647006,-186.31,0.00020548,2]
[381861234,1756374647015,-914.26787256,0.00020567,2]
[381861236,1756374647025,-400.0,0.00020639,2]
[381861238,1756374647035,-400.0,0.00020639,2]
[381861240,1756374647043,-500.0,0.0002064,6]
[381861242,1756374647052,-942.0,0.0002064,6]
[381861244,1756374647062,-500.0,0.0002064,6]
[381861246,1756374647071,-12.76585594,0.00020738,2]
[381861248,1756374647082,-434.95414406,0.00020738,2]
[381861250,1756374647091,-625.0,0.00020738,2]
[381861252,1756374647101,-400.0,0.00020738,2]
[381861254,1756374647110,-376.8863058,0.00020738,2]
[381861261,1756374647164,-817.43279447,0.000179,2]
[381861263,1756374647174,-736.30059506,0.000179,2]
[381861265,1756374647185,-19.67545964,0.000179,2]
[381861267,1756374647195,-151.0,0.00018231,2]
[381861269,1756374647204,-23.1136942,0.00020738,2]
[381861271,1756374647213,-225.98323587,0.00020739,2]
[381861274,1756374647228,-687.33676413,0.00020739,2]
[381861276,1756374647238,-500.62,0.00020739,2]
[381861278,1756374647247,-490.36,0.00020739,2]
[381861280,1756374647258,-400.0,0.00020739,2]
[381861282,1756374647267,-400.0,0.00020739,2]
[381861284,1756374647277,-400.0,0.00020739,2]
[381861286,1756374647287,-286.21979277,0.00020739,2]
[381861288,1756374647296,-833.33,0.00020739,2]
[381861290,1756374647306,-400.0,0.00020739,2]
[381861292,1756374647316,-400.0,0.00020739,2]
[381861294,1756374647327,-2074.16,0.00020739,2]
[381861296,1756374647336,-757.3736431,0.00020739,2]
[381861298,1756374647348,-364.9663569,0.00020739,2]
[381861300,1756374647358,-560.03,0.00020739,2]
[381861302,1756374647368,-400.0,0.00020739,2]
[381861304,1756374647379,-400.0,0.00020739,2]
[381861306,1756374647389,-423.69,0.00020739,2]
[381861308,1756374647398,-400.0,0.00020739,2]
[381861310,1756374647408,-400.0,0.00020739,2]
[381861312,1756374647417,-988.1787769,0.00020799,2]
[381861314,1756374647426,-1078.714487,0.00020799,2]
[381861316,1756374647436,-1000.0,0.00020802,2]
[381861318,1756374647446,-252.67,0.00020853,2]
[381861320,1756374647456,-755.97605469,0.00020862,2]
[381861323,1756374647467,-400.0,0.00020913,2]
[381861325,1756374647477,-199.3292418,0.00020913,2]
[381861327,1756374647487,-332.0,0.00020914,6]
[381861329,1756374647498,-942.0,0.00020914,6]
[381861331,1756374647508,-500.0,0.00020914,6]
[381861333,1756374647518,-447.72,0.00021012,2]
[381861335,1756374647530,-625.0,0.00021012,2]
[381861337,1756374647540,-400.0,0.00021012,2]
[381861339,1756374647551,-400.0,0.00021012,2]
[381861342,1756374647561,-913.32,0.00021013,2]
[381861344,1756374647571,-500.62,0.00021013,2]
[381861346,1756374647581,-314.19208298,0.00021013,2]
[381861348,1756374647590,-400.0,0.00021013,2]
[381861350,1756374647600,-400.0,0.00021013,2]
[381861352,1756374647610,-833.33,0.00021013,2]
[381861354,1756374647620,-400.0,0.00021013,2]
[381861356,1756374647631,-400.0,0.00021013,2]
[381861358,1756374647642,-2074.16,0.00021013,2]
[381861360,1756374647652,-1122.34,0.00021013,2]
[381861362,1756374647662,-560.03,0.00021013,2]
[381861364,1756374647672,-400.0,0.00021013,2]
[381861366,1756374647683,-400.0,0.00021013,2]
[381861368,1756374647692,-423.69,0.00021013,2]
[381861370,1756374647703,-372.25,0.00021013,2]
[381861372,1756374647713,-400.0,0.00021013,2]
[381861375,1756374647724,-400.0,0.00021187,2]
[381861377,1756374647734,-942.0,0.00021188,6]
[381861379,1756374647744,-500.0,0.00021188,6]
[381861381,1756374647754,-447.72,0.00021286,2]
[381861383,1756374647764,-625.0,0.00021286,2]
[381861385,1756374647774,-400.0,0.00021286,2]
[381861387,1756374647784,-198.01063428,0.00021286,2]
[381861389,1756374647794,-600.0,0.00021287,3]
[381861391,1756374647804,-900.88628095,0.00021287,2]
[381861414,1756374648019,-12.43371905,0.00021287,2]
[381861416,1756374648029,-500.62,0.00021287,2]
[381861419,1756374648040,-400.0,0.00021287,2]
[381861421,1756374648051,-400.0,0.00021287,2]
[381861423,1756374648062,-479.13289232,0.00021287,2]
[381861425,1756374648075,-354.19710768,0.00021287,2]
[381861427,1756374648085,-301.08585138,0.00021287,2]
[381861430,1756374648104,-98.91414862,0.00021287,2]
[381861432,1756374648116,-400.0,0.00021287,2]
[381861434,1756374648128,-2074.16,0.00021287,2]
[381861436,1756374648138,-1122.34,0.00021287,2]
[381861438,1756374648148,-560.03,0.00021287,2]
[381861441,1756374648159,-400.0,0.00021287,2]
[381861443,1756374648170,-400.0,0.00021287,2]
[381861445,1756374648181,-423.69,0.00021287,2]
[381861447,1756374648191,-400.0,0.00021287,2]
[381861449,1756374648201,-122.72991538,0.00021312,2]
[381861451,1756374648213,-40.66008462,0.00021312,2]
[381861453,1756374648224,-265.40891538,0.00021349,2]
[381861467,1756374648348,-331.9097,0.00016201,2]
[381861469,1756374648359,-293.28119685,0.00021349,2]
[381861471,1756374648369,-500.0,0.00021367,2]
[381861473,1756374648380,-400.0,0.00021461,2]
[381861475,1756374648391,-942.0,0.00021462,6]
[381861477,1756374648402,-500.0,0.00021462,6]
[381861479,1756374648413,-625.0,0.0002156,2]
[381861481,1756374648424,-400.0,0.0002156,2]
[381861483,1756374648434,-913.32,0.00021561,2]
[381861486,1756374648445,-500.62,0.00021561,2]
[381861488,1756374648455,-400.0,0.00021561,2]
[381861490,1756374648466,-400.0,0.00021561,2]
[381861492,1756374648477,-833.33,0.00021561,2]
[381861494,1756374648487,-400.0,0.00021561,2]
[381861496,1756374648498,-400.0,0.00021561,2]
[381861498,1756374648508,-2074.16,0.00021561,2]
[381861500,1756374648520,-1122.34,0.00021561,2]
[381861502,1756374648530,-560.03,0.00021561,2]
[381861504,1756374648541,-301.71727866,0.00021561,2]
[381861506,1756374648552,-400.0,0.00021561,2]
[381861508,1756374648562,-423.69,0.00021561,2]
[381861511,1756374648573,-400.0,0.00021561,2]
[381861513,1756374648583,-150.54867805,0.000216,2]
[381861515,1756374648595,-600.0,0.00021616,2]
[381861518,1756374648611,-400.0,0.00021735,2]
[381861520,1756374648624,-942.0,0.00021736,6]
[381861522,1756374648637,-248.0,0.00021736,6]
[381861524,1756374648650,-280.54255354,0.00021747,2]
[381861527,1756374648661,-250.83254163,0.00021789,2]
[381861529,1756374648673,-2135.0,0.00021814,2]
[381861531,1756374648683,-625.0,0.00021834,2]
[381861533,1756374648696,-400.0,0.00021834,2]
[381861535,1756374648708,-913.32,0.00021835,2]
[381861538,1756374648720,-500.62,0.00021835,2]
[381861541,1756374648744,-206.27138609,0.00021835,2]
[381861543,1756374648758,-156.93923436,0.00021835,2]
[381861546,1756374648771,-833.33,0.00021835,2]
[381861548,1756374648784,-400.0,0.00021835,2]
[381861551,1756374648797,-400.0,0.00021835,2]
[381861553,1756374648810,-2074.16,0.00021835,2]
[381861555,1756374648824,-1122.34,0.00021835,2]
[381861558,1756374648838,-560.03,0.00021835,2]
[381861560,1756374648850,-400.0,0.00021835,2]
[381861563,1756374648867,-423.69,0.00021835,2]
[381861565,1756374648878,-400.0,0.00021835,2]
[381861567,1756374648890,-300.0,0.00021917,2]
[381861570,1756374648904,-1000.0,0.00021917,2]
[381861572,1756374648916,-1000.0,0.00021917,2]
[381861574,1756374648930,-1000.0,0.00021917,2]
[381861576,1756374648942,-1037.52514957,0.00021917,2]
[381861579,1756374648955,-1000.0,0.00021918,3]
[381861581,1756374648969,-1000.0,0.00021918,3]
[381861583,1756374648981,-1000.0,0.00021918,3]
[381861586,1756374648994,-1000.0,0.00021918,3]
[381861588,1756374649007,-1000.0,0.00021918,3]
[381861591,1756374649019,-1000.0,0.00021918,3]
[381861593,1756374649031,-1000.0,0.00021918,3]
[381861595,1756374649043,-1000.0,0.00021918,3]
[381861598,1756374649056,-1000.0,0.00021918,3]
[381861600,1756374649068,-1000.0,0.00021918,3]
[381861602,1756374649081,-1000.0,0.00021918,3]
[381861604,1756374649093,-1000.0,0.00021918,3]
[381861607,1756374649106,-1000.0,0.00021918,3]
[381861609,1756374649117,-1000.0,0.00021918,3]
[381861611,1756374649129,-1000.0,0.00021918,3]
[381861613,1756374649140,-1000.0,0.00021918,3]
[381861615,1756374649152,-1000.0,0.00021918,3]
[381861618,1756374649164,-1000.0,0.00021918,3]
[381861620,1756374649179,-1000.0,0.00021918,3]
[381861622,1756374649191,-1000.0,0.00021918,3]
[381861625,1756374649203,-1000.0,0.00021918,3]
[381861627,1756374649216,-1000.0,0.00021918,3]
[381861629,1756374649228,-1000.0,0.00021918,3]
[381861631,1756374649239,-1000.0,0.00021918,3]
[381861634,1756374649249,-1000.0,0.00021918,3]
[381861636,1756374649259,-1000.0,0.00021918,3]
[381861638,1756374649271,-1000.0,0.00021918,3]
[381861640,1756374649280,-1000.0,0.00021918,3]
[381861642,1756374649292,-1000.0,0.00021918,3]
[381861644,1756374649305,-1000.0,0.00021918,3]
[381861646,1756374649318,-1000.0,0.00021918,3]
[381861649,1756374649328,-1000.0,0.00021918,3]
[381861651,1756374649338,-1000.0,0.00021918,3]
[381861653,1756374649348,-1000.0,0.00021918,3]
[381861655,1756374649358,-1000.0,0.00021918,3]
[381861657,1756374649370,-1000.0,0.00021918,3]
[381861659,1756374649380,-1000.0,0.00021918,3]
[381861661,1756374649393,-1000.0,0.00021918,3]
[381861663,1756374649406,-1000.0,0.00021918,3]
[381861666,1756374649418,-1000.0,0.00021918,3]
[381861668,1756374649429,-1000.0,0.00021918,3]
[381861670,1756374649439,-1000.0,0.00021918,3]
[381861672,1756374649449,-1000.0,0.00021918,3]
[381861674,1756374649459,-1000.0,0.00021918,3]
[381861676,1756374649470,-1000.0,0.00021918,3]
[381861678,1756374649481,-1000.0,0.00021918,3]
[381861680,1756374649493,-1000.0,0.00021918,3]
[381861682,1756374649503,-1000.0,0.00021918,3]
[381861684,1756374649514,-1000.0,0.00021918,3]
[381861686,1756374649524,-1000.0,0.00021918,3]
[381861689,1756374649538,-1000.0,0.00021918,3]
[381861691,1756374649550,-1000.0,0.00021918,3]
[381861693,1756374649561,-1000.0,0.00021918,3]
[381861695,1756374649573,-1000.0,0.00021918,3]
[381861697,1756374649583,-1000.0,0.00021918,3]
[381861700,1756374649593,-1000.0,0.00021918,3]
[381861702,1756374649604,-1000.0,0.00021918,3]
[381861704,1756374649615,-1000.0,0.00021918,3]
[381861706,1756374649626,-1000.0,0.00021918,3]
[381861708,1756374649638,-1000.0,0.00021918,3]
[381861710,1756374649648,-1000.0,0.00021918,3]
[381861712,1756374649659,-1000.0,0.00021918,3]
[381861714,1756374649670,-1000.0,0.00021918,3]
[381861717,1756374649681,-1000.0,0.00021918,3]
[381861719,1756374649691,-1000.0,0.00021918,3]
[381861721,1756374649702,-1000.0,0.00021918,3]
[381861723,1756374649712,-1000.0,0.00021918,3]
[381861725,1756374649722,-1000.0,0.00021918,3]
[381861727,1756374649732,-1000.0,0.00021918,3]
[381861729,1756374649743,-1000.0,0.00021918,3]
[381861731,1756374649754,-1000.0,0.00021918,3]
[381861733,1756374649764,-1000.0,0.00021918,3]
[381861735,1756374649775,-1000.0,0.00021918,3]
[381861738,1756374649784,-310.0,0.00021918,3]
[381861740,1756374649795,-5000.0,0.00021918,2]
[381861742,1756374649806,-524.19243334,0.00021918,2]
[381861744,1756374649816,-150.0,0.00021918,2]
[381861746,1756374649826,-150.0,0.00021918,6]
[381861748,1756374649837,-409.82097998,0.0002192,3]
[381861750,1756374649848,-538.20021076,0.0002192,4]
[381861752,1756374649861,-538.20021076,0.0002192,4]
[381861754,1756374649872,-538.20021076,0.0002192,4]
[381861756,1756374649884,-538.20021076,0.0002192,4]
[381861759,1756374649894,-538.20021076,0.0002192,4]
[381861761,1756374649907,-538.20021076,0.0002192,4]
[381861763,1756374649917,-538.20021076,0.0002192,4]
[381861765,1756374649929,-538.20021076,0.0002192,4]
[381861767,1756374649939,-538.20021076,0.0002192,4]
[381861769,1756374649950,-538.20021076,0.0002192,4]
[381861771,1756374649960,-538.20021076,0.0002192,4]
[381861773,1756374649971,-538.20021076,0.0002192,4]
[381861775,1756374649981,-538.20021076,0.0002192,4]
[381861777,1756374649992,-538.20021076,0.0002192,4]
[381861780,1756374650002,-538.20021076,0.0002192,4]
[381861782,1756374650014,-538.20021076,0.0002192,4]
[381861784,1756374650025,-538.20021076,0.0002192,4]
[381861786,1756374650036,-538.20021076,0.0002192,4]
[381861788,1756374650047,-538.20021076,0.0002192,4]
[381861790,1756374650057,-538.2,0.0002192,4]
[381861792,1756374650068,-244.6051434,0.0002192,4]
[381861794,1756374650078,-244.6051434,0.0002192,4]
[381861797,1756374650089,-244.6051434,0.0002192,4]
[381861799,1756374650100,-244.6051434,0.0002192,4]
[381861801,1756374650110,-244.6051434,0.0002192,4]
[381861803,1756374650121,-244.6051434,0.0002192,4]
[381861805,1756374650132,-244.6051434,0.0002192,4]
[381861807,1756374650143,-244.6051434,0.0002192,4]
[381861809,1756374650154,-244.6051434,0.0002192,4]
[381861811,1756374650164,-244.6051434,0.0002192,4]
[381861813,1756374650175,-244.6051434,0.0002192,4]
[381861816,1756374650186,-244.6051434,0.0002192,4]
[381861818,1756374650197,-244.6051434,0.0002192,4]
[381861820,1756374650207,-244.6051434,0.0002192,4]
[381861822,1756374650218,-244.6051434,0.0002192,4]
[381861824,1756374650228,-244.6051434,0.0002192,4]
[381861826,1756374650238,-244.6051434,0.0002192,4]
[381861828,1756374650249,-244.6051434,0.0002192,4]
[381861830,1756374650260,-244.6051434,0.0002192,4]
[381861832,1756374650271,-244.6,0.0002192,4]
[381861835,1756374650282,-500.0,0.00021973,2]
[381861837,1756374650293,-500.0,0.00021973,2]
[381861839,1756374650304,-150.0,0.00021973,2]
[381861841,1756374650316,-300.0,0.00021999,2]
[381861843,1756374650327,-4000.0,0.00022,4]
[381861845,1756374650339,-89188.86,0.00022,7]
[381861846,1756374650351,-408.09,0.00022,7]
[381861847,1756374650362,-5720.62,0.00022,7]
[381861848,1756374650372,-7844.13,0.00022,2]
[381861849,1756374650384,-212.25325354,0.00022,3]
[381861850,1756374650395,-212.25325354,0.00022,7]
[381861851,1756374650406,-335.77989995,0.00022009,2]
[381861852,1756374650418,-942.0,0.0002201,6]
[381861853,1756374650427,-5800.0,0.00022067,2]
[381861854,1756374650437,-5800.0,0.00022075,2]
[381861855,1756374650446,-5800.0,0.00022084,2]
[381861856,1756374650455,-5800.0,0.00022092,2]
[381861857,1756374650464,-5800.0,0.00022101,2]
[381861858,1756374650473,-300.0,0.00022108,2]
[381861859,1756374650483,-625.0,0.00022108,2]
[381861860,1756374650492,-400.0,0.00022108,2]
[381861861,1756374650502,-5800.0,0.00022109,2]
[381861862,1756374650511,-913.32,0.00022109,2]
[381861863,1756374650520,-500.62,0.00022109,2]